bitfinex/quotes_SOLUSD_20260201
["timestamp","ask_amount","ask_price","bid_price","bid_amount"]
[1769987657640,4.19932481,100.25,100.17,19.65957341]
[1769987657841,15.33122081,100.24,100.18,15.33122081]
[1769987658039,15.33122081,100.27,100.2,15.33122081]
[1769987658344,15.33122081,100.33,100.26,15.33122081]
[1769987658518,0.1,100.34,100.28,15.33122081]
[1769987658722,15.33122081,100.37,100.3,15.33122081]
[1769987658942,4.19932481,100.36,100.28,19.60649166]
[1769987659117,15.33122081,100.31,100.16,50.78176854]
[1769987659324,15.33122081,100.32,100.25,20.97640583]
[1769987659620,15.33122081,100.33,100.26,15.33122081]
[1769987659838,15.33122081,100.3,100.27,4.3283526]
[1769987660146,15.33122081,100.3,100.25,4.3283526]
[1769987660358,15.33122081,100.26,100.19,29.27867884]
[1769987660522,15.33122081,100.23,100.17,29.28438125]
[1769987660722,15.33122081,100.22,100.17,4.3283526]
[1769987660930,4.19932481,100.23,100.14,4.3283526]
[1769987661131,15.33122081,100.17,100.13,9.98688947]
[1769987661332,8.47459566,100.19,100.08,4.3283526]
[1769987661541,34.92316902,100.22,100.07,32.0483526]
[1769987661542,4.19932481,100.15,100.07,32.0483526]
[1769987661727,15.33122081,100.11,100.05,4.3283526]
[1769987661931,4.27527085,100.19,100.07,4.3283526]
[1769987661932,4.19932481,100.16,100.07,4.3283526]
[1769987662127,15.33122081,100.12,100.07,4.3283526]
[1769987662324,15.33122081,100.16,100.1,4.3283526]
[1769987662641,15.33122081,100.17,100.1,4.27527085]
[1769987662842,4.19932481,100.18,100.11,9.68921448]
[1769987663144,4.19932481,100.18,100.12,14.31563279]
[1769987663145,9.98203234,100.18,100.12,14.31563279]
[1769987663349,15.33122081,100.18,100.12,29.64739158]
[1769987663540,15.33122081,100.21,100.14,19.65957341]
[1769987663845,4.19932481,100.2,100.12,29.59430983]
[1769987664029,15.33122081,100.18,100.12,9.98781817]
[1769987664233,15.33122081,100.16,100.1,9.98967954]
[1769987664437,15.33122081,100.15,100.09,14.31902717]
[1769987664646,15.33122081,100.16,100.12,9.98791455]
[1769987664847,15.33122081,100.17,100.12,9.98791455]
[1769987665445,39.13328765,100.19,100.11,4.3283526]
[1769987665636,19.53054562,100.19,100.12,19.65957341]
[1769987665948,49.26918838,100.27,100.12,19.65957341]
[1769987665949,15.33122081,100.2,100.14,19.65957341]
[1769987666141,15.33122081,100.23,100.17,9.97353762]
[1769987666447,15.2484615,100.24,100.18,15.2484615]
[1769987666627,15.2484615,100.22,100.16,5.64518502]
[1769987666823,15.2484615,100.2,100.13,32.0483526]
[1769987667124,15.2484615,100.24,100.19,9.98103603]
[1769987667537,15.2484615,100.23,100.18,9.98174461]
[1769987667744,14.94871262,100.22,100.18,9.98174461]
[1769987667938,15.2484615,100.22,100.16,14.31166756]
[1769987668242,4.19932481,100.24,100.16,4.3283526]
[1769987668459,4.19932481,100.24,100.15,24.96012786]
[1769987668947,4.19932481,100.24,100.18,9.98191609]
[1769987669124,66.89932481,100.25,100.17,9.98292494]
[1769987669319,66.89932481,100.25,100.19,15.2484615]
[1769987669526,19.44778631,100.28,100.21,15.2484615]
[1769987669846,62.7,100.36,100.25,15.2484615]
[1769987669847,4.19932481,100.31,100.25,15.2484615]
[1769987670044,15.2484615,100.29,100.23,9.4663491]
[1769987670248,15.2484615,100.25,100.18,19.52373235]
[1769987670451,15.2484615,100.22,100.17,34.94049706]
[1769987670748,15.2484615,100.18,100.13,24.96728144]
[1769987670922,15.2484615,100.18,100.01,1.1999]
[1769987670923,15.2484615,100.21,100.17,9.98292927]
[1769987671124,19.44778631,100.23,100.17,24.95757212]
[1769987671329,14.17353406,100.26,100.18,24.99913374]
[1769987671545,4.19932481,100.24,100.17,40.20603362]
[1769987671848,15.2484615,100.22,100.16,34.94408944]
[1769987672145,15.2484615,100.25,100.19,5.36086188]
[1769987672352,19.44778631,100.26,100.2,15.53278464]
[1769987672538,15.2484615,100.24,100.18,4.10548722]
[1769987672747,15.2484615,100.24,100.18,24.7148106]
[1769987672941,15.2484615,100.26,100.19,20.89364652]
[1769987673134,15.2484615,100.2,100.15,9.98412492]
[1769987673330,15.2484615,100.17,100.09,31.82548722]
[1769987673550,15.2484615,100.17,100.11,9.98874486]
[1769987673551,15.2484615,100.15,100.11,9.98874486]
[1769987673850,15.2484615,100.12,100.05,19.35394872]
[1769987674041,15.2484615,100.08,100.03,9.99659398]
[1769987674355,15.2484615,100.08,100.02,19.35394872]
[1769987674356,15.2484615,100.07,100.04,9.99578655]
[1769987674533,4.19932481,100.11,100.04,9.99578655]
[1769987674728,4.27527085,100.13,100.02,24.99416619]
[1769987674729,15.2484615,100.08,100.02,24.99416619]
[1769987674934,15.2484615,100.06,100.03,9.99660631]
[1769987675153,15.2484615,100.06,100.01,25.19652252]
[1769987675447,15.2484615,100.09,100.02,19.5768141]
[1769987675647,15.2484615,100.08,100.03,34.9893686]
[1769987675835,4.19932481,100.1,100.04,20.60932338]
[1769987676041,15.2484615,100.08,100.03,34.9893686]
[1769987676344,15.2484615,100.07,100.03,9.99686636]
[1769987676544,15.2484615,100.06,100.02,9.99740127]
[1769987676741,15.2484615,100.06,100.01,14.52678664]
[1769987677049,15.2484615,100.04,100.01,0.2]
[1769987677255,15.2484615,100.02,99.962,4.3283526]
[1769987677552,15.2484615,100.01,99.977,10.0022267]
[1769987677735,15.2484615,100.0,99.963,10.00370136]
[1769987677930,15.2484615,100.01,99.963,35.01295478]
[1769987678470,4.19018563,100.08,99.99,20.60932338]
[1769987678646,15.2484615,100.06,100.0,15.2484615]
[1769987678845,15.2484615,100.06,99.98,4.27527085]
[1769987678846,15.2484615,100.04,99.98,24.88459423]
[1769987679049,15.2484615,100.04,99.98,9.63613273]
[1769987679249,15.2484615,100.03,99.981,10.00190036]
[1769987679455,15.2484615,100.06,99.991,4.2675503]
[1769987679754,15.2484615,100.05,99.991,4.2675503]
[1769987679949,15.2484615,100.03,99.981,10.00190036]
[1769987680151,39.16926241,100.06,99.971,4.2675503]
[1769987680152,15.2484615,100.04,99.971,4.2675503]
[1769987680334,9.99384831,100.07,100.0,15.2484615]
[1769987680529,25.24230981,100.07,100.01,15.2484615]
[1769987680734,4.19018563,100.09,100.01,15.2484615]
[1769987680947,15.2484615,100.08,100.02,15.2484615]
[1769987681151,19.43864713,100.07,100.01,9.99900009]
[1769987681353,15.2484615,100.06,100.01,9.99900009]
[1769987681741,4.19018563,100.1,100.02,19.5160118]
[1769987681942,29.42939646,100.1,100.03,4.2675503]
[1769987682150,29.42939646,100.1,100.03,19.5160118]
[1769987682356,9.98801438,100.12,100.05,19.5160118]
[1769987682557,15.2484615,100.06,100.01,9.99900009]
[1769987683371,15.2484615,100.06,100.01,34.99650033]
[1769987683657,15.2484615,100.08,100.02,25.16119682]
[1769987683862,4.19018563,100.1,100.04,20.89364652]
[1769987684164,25.23682394,100.12,100.05,19.5160118]
[1769987684363,15.2484615,100.09,100.03,32.0075503]
[1769987684547,34.95839839,100.12,100.05,15.2484615]
[1769987684750,15.2484615,100.09,100.04,4.2675503]
[1769987684949,15.2484615,100.11,100.05,19.5160118]
[1769987685161,77.9484615,100.13,100.07,9.99300489]
[1769987685368,15.2484615,100.1,100.04,15.2484615]
[1769987685563,4.19018563,100.11,100.03,34.90482663]
[1769987685564,15.2484615,100.08,100.03,34.90482663]
[1769987685744,19.43864713,100.11,100.04,50.3548335]
[1769987685941,15.2484615,100.09,100.03,20.60932338]
[1769987686148,15.2484615,100.12,100.06,9.99391408]
[1769987686357,77.11511019,100.13,100.03,15.64122114]
[1769987686358,15.2484615,100.09,100.03,15.64122114]
[1769987686562,15.2484615,100.07,100.03,9.99603612]
[1769987686864,15.2484615,100.05,100.0,24.9994709]
[1769987687065,15.2484615,100.03,99.983,25.00424779]
[1769987687270,4.42749493,100.06,99.98,19.72090329]
[1769987687578,4.42749493,100.08,100.02,15.2484615]
[1769987687765,4.42749493,100.08,100.01,10.11762681]
[1769987687960,29.66806563,100.08,100.01,25.08176517]
[1769987688160,15.2484615,100.07,100.01,25.08176517]
[1769987688459,15.2484615,100.06,100.01,9.83330367]
[1769987688765,15.2484615,100.07,100.01,25.08176517]
[1769987688957,15.2484615,100.08,100.02,20.00522643]
[1769987689260,31.60617113,100.07,100.02,14.46965477]
[1769987689465,15.2484615,100.11,100.05,5.64518502]
[1769987689668,15.2484615,100.11,100.03,36.50771264]
[1769987689873,15.2484615,100.08,100.03,4.47244179]
[1769987690051,6.36588355,100.07,100.03,15.2484615]
[1769987690366,15.2484615,100.08,100.02,29.71854128]
[1769987690569,4.42749493,100.1,100.02,25.24609949]
[1769987690774,15.2484615,100.04,99.985,4.47244179]
[1769987691065,15.2484615,100.01,99.969,10.00307157]
[1769987691248,6.36360622,100.03,99.961,4.47244179]
[1769987691249,15.2484615,100.02,99.961,4.47244179]
[1769987691448,4.42749493,100.06,99.99,0.28432314]
[1769987691663,6.36935722,100.05,100.0,20.89364652]
[1769987691863,15.2484615,100.04,99.991,4.47244179]
[1769987692062,15.2484615,100.04,99.981,4.47244179]
[1769987692266,15.2484615,100.03,99.97,9.63613273]
[1769987692463,15.2484615,100.02,99.961,35.01365532]
[1769987692845,15.2484615,99.99,99.937,29.48817497]
[1769987693050,15.2484615,100.02,99.961,35.01365532]
[1769987693354,19.67595643,100.03,99.97,20.60932338]
[1769987693555,15.2484615,100.03,99.971,4.47244179]
[1769987693765,6.36201839,100.02,99.971,4.47244179]
[1769987693954,15.2484615,100.03,99.971,4.47244179]
[1769987694350,12.28909604,100.07,100.0,20.89364652]
[1769987694568,21.59869439,100.06,100.0,5.36086188]
[1769987694761,21.59869439,100.05,99.991,4.47244179]
[1769987694947,19.67595643,100.06,100.0,15.2484615]
[1769987695358,29.67006543,100.06,100.01,9.99900009]
[1769987696074,6.34903671,100.05,100.01,9.99900009]
[1769987696273,19.67595643,100.03,99.96,24.88459423]
[1769987696475,19.67595643,100.03,99.996,10.0003619]
[1769987696657,15.2484615,100.04,99.98,15.2484615]
[1769987696857,15.2484615,100.04,100.0,9.99955306]
[1769987697167,4.42749493,100.06,100.0,25.24801456]
[1769987697351,15.2484615,100.05,100.0,9.99955306]
[1769987697872,29.67029211,100.06,100.0,50.24801456]
[1769987698178,21.59104468,100.05,100.0,9.99955306]
[1769987698355,15.2484615,100.05,100.0,9.99955306]
[1769987698550,14.42183061,100.06,100.0,34.99955306]
[1769987698876,4.42749493,100.09,100.03,15.2484615]
[1769987699176,19.67595643,100.11,100.05,15.2484615]
[1769987699353,16.33814618,100.1,100.06,9.99400359]
[1769987699554,4.42749493,100.09,100.04,24.98875826]
[1769987699759,19.67595643,100.09,100.04,24.98875826]
[1769987699954,4.42749493,100.09,100.04,9.99582362]
[1769987700160,4.42749493,100.09,100.05,9.99496216]
[1769987700355,7.86160111,100.14,100.09,0.28432314]
[1769987700564,15.69780762,100.18,100.12,15.2484615]
[1769987700565,4.42749493,100.18,100.12,15.2484615]
[1769987700764,15.2484615,100.18,100.11,5.64518502]
[1769987701076,15.3484615,100.2,100.13,20.00522643]
[1769987701274,15.2484615,100.16,100.11,9.98901208]
[1769987701477,7.86160111,100.19,100.08,4.47244179]
[1769987701662,0.1,100.2,100.14,19.72090329]
[1769987701869,15.2484615,100.23,100.16,19.72090329]
[1769987702169,7.94583879,100.25,100.17,19.72090329]
[1769987702371,35.70583879,100.31,100.22,4.27527085]
[1769987702559,15.2484615,100.31,100.23,10.11762681]
[1769987702764,15.2484615,100.34,100.27,4.47244179]
[1769987702977,0.29796506,100.35,100.3,15.2484615]
[1769987703163,19.67595643,100.33,100.26,19.72090329]
[1769987703367,4.42749493,100.32,100.26,9.97374748]
[1769987703675,4.42749493,100.37,100.28,19.72090329]
[1769987703984,4.42749493,100.4,100.34,15.2484615]
[1769987704283,4.42749493,100.4,100.31,9.03203578]
[1769987704457,4.42749493,100.34,100.26,34.90873281]
[1769987704779,4.42749493,100.37,100.28,19.72090329]
[1769987704976,4.42749493,100.37,100.29,15.53278464]
[1769987705186,15.2484615,100.3,100.25,9.97489003]
[1769987705385,19.67595643,100.26,100.18,19.72090329]
[1769987705679,4.42749493,100.28,100.23,9.97664236]
[1769987705856,15.2484615,100.26,100.23,9.97664236]
[1769987706177,15.2484615,100.29,100.24,4.47244179]
[1769987706378,7.9476997,100.38,100.28,4.47244179]
[1769987706560,15.2484615,100.37,100.3,4.47244179]
[1769987706764,15.2484615,100.37,100.31,15.2484615]
[1769987706958,15.2484615,100.32,100.25,4.47244179]
[1769987707266,24.91539178,100.34,100.24,48.93383355]
[1769987707474,15.2484615,100.29,100.26,9.97328691]
[1769987707684,9.96512207,100.35,100.27,9.97256273]
[1769987707881,62.7,100.38,100.3,19.5131283]
[1769987708060,15.2484615,100.36,100.3,19.5131283]
[1769987708255,15.2484615,100.35,100.29,24.87399018]
[1769987708468,15.2484615,100.36,100.3,15.2484615]
[1769987708669,15.2484615,100.35,100.29,24.87399018]
[1769987708874,3.13948783,100.37,100.29,4.2646668]
[1769987709074,15.2484615,100.35,100.29,19.5131283]
[1769987709277,77.9484615,100.38,100.31,54.4049636]
[1769987709479,15.2484615,100.36,100.31,14.2337626]
[1769987709684,15.2484615,100.33,100.28,4.2646668]
[1769987709865,15.2484615,100.4,100.33,4.2646668]
[1769987710065,3.13948783,100.42,100.34,4.2646668]
[1769987710361,15.2484615,100.37,100.32,4.2646668]
[1769987710575,15.2484615,100.37,100.31,15.2484615]
[1769987710780,15.2484615,100.32,100.27,4.2646668]
[1769987711090,15.2484615,100.29,100.24,4.2646668]
[1769987711296,15.2484615,100.27,100.24,9.97590627]
[1769987711461,15.2484615,100.28,100.24,9.97590627]
[1769987711666,15.2484615,100.27,100.24,14.24057307]
[1769987711896,3.13948783,100.28,100.19,15.2484615]
[1769987712185,15.2484615,100.21,100.18,9.98174112]
[1769987712485,15.2484615,100.27,100.21,4.2646668]
[1769987712684,15.2484615,100.29,100.21,4.2646668]
[1769987712869,3.13948783,100.31,100.23,9.62552868]
[1769987713074,15.2484615,100.32,100.26,4.2646668]
[1769987713286,15.2484615,100.32,100.24,15.33691934]
[1769987713287,9.96810207,100.32,100.24,15.33691934]
[1769987713589,7.41475868,100.3,100.21,4.2646668]
[1769987713770,15.2484615,100.26,100.21,14.24321907]
[1769987713964,4.27527085,100.31,100.23,19.5131283]
[1769987714185,15.2484615,100.28,100.23,39.18371607]
[1769987714390,9.96810207,100.32,100.25,4.2646668]
[1769987714689,15.2484615,100.31,100.25,9.90985182]
[1769987714869,3.13948783,100.35,100.27,20.89364652]
[1769987715069,15.2484615,100.36,100.3,4.2646668]
[1769987715292,15.2484615,100.35,100.29,9.97108385]
[1769987715584,3.13948783,100.37,100.29,9.97108385]
[1769987715585,15.2484615,100.34,100.29,9.97108385]
[1769987715771,3.13948783,100.35,100.27,4.2646668]
[1769987715971,15.2484615,100.32,100.27,14.2374648]
[1769987716170,15.2484615,100.33,100.27,4.2646668]
[1769987716392,15.2484615,100.32,100.27,4.2646668]
[1769987716789,15.2484615,100.32,100.28,4.2646668]
[1769987716981,0.5,100.34,100.25,4.27527085]
[1769987716982,15.2484615,100.3,100.25,29.20186849]
[1769987717295,15.2484615,100.3,100.27,9.97241517]
[1769987717589,15.2484615,100.29,100.25,9.97442144]
[1769987717788,15.7484615,100.34,100.28,4.2646668]
[1769987717983,25.71496225,100.34,100.28,4.2646668]
[1769987718285,15.2484615,100.33,100.27,19.5131283]
[1769987718505,62.7,100.36,100.31,19.79745144]
[1769987718666,15.2484615,100.35,100.29,9.90985182]
[1769987718866,15.2484615,100.35,100.28,15.2484615]
[1769987718867,18.38794933,100.3,100.22,4.2646668]
[1769987719072,18.38794933,100.3,99.874,100.12609801]
[1769987719073,15.2484615,100.25,100.21,4.2646668]
[1769987719296,15.2484615,100.24,100.21,4.2646668]
[1769987719592,4.27527085,100.28,100.19,4.2646668]
[1769987719775,15.2484615,100.25,100.21,4.2646668]
[1769987719976,15.2484615,100.24,100.21,4.2646668]
[1769987720192,29.20665482,100.28,100.2,9.97997497]
[1769987720392,29.20665482,100.28,100.18,4.2646668]
[1769987720393,15.2484615,100.22,100.19,9.98094397]
[1769987720694,15.2484615,100.21,100.17,9.98266609]
[1769987720868,15.2484615,100.21,100.09,77.41495673]
[1769987720869,15.2484615,100.25,100.19,4.2646668]
[1769987721072,15.2484615,100.26,100.21,9.97894273]
[1769987721282,15.2484615,100.22,100.18,9.98175089]
[1769987721469,15.2484615,100.19,100.12,4.2646668]
[1769987721690,15.2484615,100.14,100.11,9.98840067]
[1769987721887,3.13948783,100.19,100.1,4.2646668]
[1769987722093,15.2484615,100.11,100.05,14.25896155]
[1769987722274,15.2484615,100.07,100.03,4.2646668]
[1769987722479,15.2484615,100.07,100.03,14.26155613]
[1769987722677,15.2484615,100.04,100.0,14.264504]
[1769987722981,3.13948783,100.13,100.02,4.2646668]
[1769987723195,4.27527085,100.15,100.08,19.5131283]
[1769987723390,9.98402555,100.16,100.1,9.99000999]
[1769987723581,15.2484615,100.14,100.1,4.2646668]
[1769987723785,9.98402555,100.16,100.1,4.4646668]
[1769987723979,15.2484615,100.13,100.1,0.2]
[1769987724182,15.2484615,100.11,100.06,4.2646668]
[1769987724394,15.2484615,100.07,100.01,4.2646668]
[1769987724700,15.2484615,100.05,100.0,9.99932416]
[1769987724994,15.2484615,100.04,100.01,9.99817787]
[1769987725201,7.41475868,100.09,99.951,4.2646668]
[1769987725202,15.2484615,100.02,99.951,4.2646668]
[1769987725501,15.2484615,99.99,99.952,10.0048023]
[1769987725680,15.2484615,99.99,99.938,25.01531407]
[1769987725681,15.2484615,100.0,99.938,25.01531407]
[1769987725884,15.2484615,100.04,99.981,4.2646668]
[1769987726095,9.99400359,100.06,100.0,15.2484615]
[1769987726296,9.99400359,100.06,100.01,15.2484615]
[1769987726472,4.27527085,100.09,100.0,5.64518502]
[1769987726684,25.29609721,100.08,100.02,19.56875762]
[1769987726883,15.30409082,100.04,99.976,4.2646668]
[1769987727087,15.30409082,100.02,99.952,4.2646668]
[1769987727310,15.30409082,99.96,99.909,10.00905978]
[1769987727516,15.30409082,99.94,99.904,4.2646668]
[1769987727691,15.30409082,99.93,99.904,4.2646668]
[1769987727991,15.30409082,99.94,99.905,14.27417583]
[1769987728189,3.13948783,99.986,99.906,4.2646668]
[1769987728384,15.30409082,99.95,99.906,4.2646668]
[1769987728585,10.0001,99.999,99.89,15.50409082]
[1769987728586,3.10809295,99.919,99.89,0.16860513]
[1769987728792,15.30409082,99.9,99.849,0.3143727]
[1769987729005,4.27527085,99.93,99.85,4.2646668]
[1769987729311,3.07701202,99.929,99.849,0.28329177]
[1769987729514,10.0141199,99.859,99.797,10.02025091]
[1769987729713,15.30409082,99.81,99.786,4.2646668]
[1769987729892,15.30409082,99.81,99.11,1415.93551288]
[1769987729893,3.04624189,99.882,99.794,4.2646668]
[1769987730212,4.27527085,99.88,99.794,4.2646668]
[1769987730390,4.27527085,99.88,99.811,4.2646668]
[1769987730711,4.27527085,99.88,99.721,1.0027978]
[1769987730712,15.30409082,99.82,99.764,4.2646668]
[1769987730911,15.30409082,99.79,99.74,4.2646668]
[1769987731219,15.30409082,99.75,99.713,27.16321215]
[1769987731394,15.30409082,99.72,99.674,4.49999999]
[1769987731596,4.27527085,99.72,99.651,4.49999999]
[1769987731900,4.27527085,99.76,99.676,4.49999999]
[1769987732094,4.27527085,99.74,99.676,4.49999999]
[1769987732291,4.27527085,99.76,99.676,4.49999999]
[1769987732615,10.02184762,99.782,99.681,4.49999999]
[1769987732796,35.06978886,99.801,99.681,4.49999999]
[1769987733104,4.27527085,99.84,99.731,5.36086188]
[1769987733313,15.30409082,99.8,99.74,15.30409082]
[1769987733501,15.30409082,99.8,99.749,10.02508989]
[1769987733686,15.30409082,99.8,99.742,10.02578665]
[1769987733890,4.27527085,99.86,99.725,10.02757119]
[1769987734086,85.10041849,99.882,99.716,10.02847573]
[1769987734290,4.27527085,99.78,99.699,4.49999999]
[1769987734493,4.27527085,99.78,99.704,4.49999999]
[1769987734696,15.30409082,99.74,99.708,4.49999999]
[1769987734906,19.57936167,99.72,99.624,4.49999999]
[1769987735115,15.30409082,99.66,99.624,4.49999999]
[1769987735296,15.30409082,99.68,99.646,4.81437269]
[1769987735495,50.35220517,99.774,99.646,4.81437269]
[1769987735496,50.59566043,99.857,99.661,4.49999999]
[1769987735689,50.59566043,99.857,99.66,15.30409082]
[1769987735690,5.36086188,99.857,99.701,4.49999999]
[1769987735997,15.30409082,99.78,99.721,4.49999999]
[1769987736301,27.78,99.858,99.721,4.49999999]
[1769987736614,15.30409082,99.81,99.751,4.49999999]
[1769987736803,15.30409082,99.76,99.684,4.49999999]
[1769987737006,15.30409082,99.76,99.647,35.12398767]
[1769987737007,4.38732392,99.788,99.69,4.2646668]
[1769987737214,15.30409082,99.72,99.648,4.2646668]
[1769987737511,4.43009545,99.719,99.642,10.03586513]
[1769987737814,4.27527085,99.71,99.646,1e-08]
[1769987738013,15.30409082,99.66,99.646,1e-08]
[1769987738315,4.27527085,99.71,99.646,1e-08]
[1769987738316,15.30409082,99.71,99.65,15.30409082]
[1769987738494,4.43009545,99.709,99.646,1e-08]
[1769987738690,4.43009545,99.709,99.541,50.95727899]
[1769987738691,4.43009545,99.705,99.591,4.19673495]
[1769987738888,15.30409082,99.64,99.6,4.19673495]
[1769987739112,15.30409082,99.65,99.6,4.19673495]
[1769987739414,10.03925348,99.609,99.556,4.19673495]
[1769987739718,15.30409082,99.6,99.557,10.04449712]
[1769987739899,10.03824571,99.619,99.548,10.04532702]
[1769987740211,4.27527085,99.62,99.558,4.19673495]
[1769987740417,4.27527085,99.65,99.558,4.19673495]
[1769987740593,15.30409082,99.59,99.561,4.19673495]
[1769987740792,15.30409082,99.63,99.571,4.19673495]
[1769987740995,4.43009545,99.642,99.571,4.19673495]
[1769987741201,15.30409082,99.6,99.558,4.19673495]
[1769987741400,15.30409082,99.65,99.592,35.143385]
[1769987741714,4.43009545,99.669,99.592,10.04096714]
[1769987741920,15.30409082,99.6,99.555,4.19673495]
[1769987742121,15.30409082,99.6,99.578,10.04228125]
[1769987742415,4.27527085,99.67,99.598,4.19673495]
[1769987742617,10.03187794,99.683,99.62,15.30409082]
[1769987742916,4.43009545,99.696,99.592,10.04096714]
[1769987742917,15.30409082,99.68,99.63,15.30409082]
[1769987743118,15.30409082,99.7,99.634,4.19673495]
[1769987743420,15.30409082,99.64,99.566,4.19673495]
[1769987743622,15.30409082,99.58,99.51,4.19673495]
[1769987743913,15.30409082,99.53,99.5,0.2]
[1769987744118,4.43009545,99.588,99.526,10.04762574]
[1769987744119,15.30409082,99.55,99.526,10.04762574]
[1769987744323,4.27527085,99.636,99.541,4.19673495]
[1769987744521,15.30409082,99.59,99.541,4.19673495]
[1769987744816,4.27527085,99.626,99.544,5.36086188]
[1769987744995,15.30409082,99.61,99.56,15.30409082]
[1769987745197,15.30409082,99.62,99.57,15.30409082]
[1769987745596,4.43009545,99.679,99.61,15.30409082]
[1769987745794,4.43009545,99.679,99.571,35.15079691]
[1769987745795,4.43009545,99.702,99.64,15.30409082]
[1769987746040,15.30409082,99.68,99.64,15.30409082]
[1769987746219,15.30409082,99.65,99.581,4.19673495]
[1769987746416,15.30409082,99.64,99.586,5.36086188]
[1769987746604,4.43009545,99.718,99.63,15.30409082]
[1769987746917,15.30409082,99.69,99.65,15.30409082]
[1769987747102,15.30409082,99.7,99.65,15.30409082]
[1769987747309,15.30409082,99.7,99.66,15.30409082]
[1769987747619,5.24191119,99.751,99.68,15.30409082]
[1769987747918,15.30409082,99.71,99.66,15.30409082]
[1769987748109,15.30409082,99.72,99.67,15.30409082]
[1769987748292,15.30409082,99.75,99.7,15.30409082]
[1769987748709,15.30409082,99.76,99.703,4.09234667]
[1769987748922,15.30409082,99.78,99.707,4.37666981]
[1769987749121,15.30409082,99.84,99.771,4.09234667]
[1769987749307,5.23559084,99.83,99.771,4.09234667]
[1769987749507,15.30409082,99.81,99.76,15.30409082]
[1769987750015,4.12476199,99.863,99.8,15.30409082]
[1769987750231,15.40409082,99.82,99.764,9.73753169]
[1769987750437,0.1,99.82,99.79,15.30409082]
[1769987750603,0.1,99.82,99.81,15.30409082]
[1769987750799,4.12476199,99.887,99.81,15.30409082]
[1769987751031,15.30409082,99.83,99.785,4.09234667]
[1769987751517,10.02114461,99.789,99.726,5.36086188]
[1769987751819,15.30409082,99.82,99.77,15.30409082]
[1769987752016,4.12476199,99.847,99.79,15.30409082]
[1769987752217,15.30409082,99.83,99.768,4.09234667]
[1769987752404,15.30409082,99.82,99.765,4.09234667]
[1769987752604,15.30409082,99.8,99.75,15.30409082]
[1769987752918,4.27527085,99.827,99.771,4.09234667]
[1769987753122,15.30409082,99.81,99.771,4.09234667]
[1769987753319,15.30409082,99.8,99.75,15.30409082]
[1769987753621,15.30409082,99.8,99.017,103.9]
[1769987753622,15.30409082,99.77,99.73,15.30409082]
[1769987753805,15.30409082,99.77,99.731,4.09234667]
[1769987754014,15.30409082,99.78,99.731,4.09234667]
[1769987754208,15.30409082,99.79,99.741,4.09234667]
[1769987754513,15.30409082,99.78,99.741,4.09234667]
[1769987754710,15.30409082,99.82,99.77,15.30409082]
[1769987754909,15.30409082,99.79,99.743,4.09234667]
[1769987755108,4.27527085,99.816,99.743,4.09234667]
[1769987755322,15.30409082,99.8,99.75,15.30409082]
[1769987755510,15.30409082,99.78,99.73,15.30409082]
[1769987755711,15.30409082,99.77,99.722,4.09234667]
[1769987755912,15.30409082,99.76,99.722,4.09234667]
[1769987756115,4.12476199,99.776,99.71,15.30409082]
[1769987756315,15.30409082,99.76,99.711,4.09234667]
[1769987756635,15.30409082,99.8,99.75,15.30409082]
[1769987756807,15.30409082,99.79,99.74,15.30409082]
[1769987757006,15.30409082,99.79,99.731,10.02697255]
[1769987757202,15.30409082,99.76,99.707,4.09234667]
[1769987757409,15.30409082,99.75,99.702,4.09234667]
[1769987757632,15.30409082,99.75,99.698,4.09234667]
[1769987757925,4.27527085,99.766,99.698,4.09234667]
[1769987758129,15.30409082,99.76,99.709,10.02917383]
[1769987758323,4.27527085,99.798,99.712,4.09234667]
[1769987758510,15.30409082,99.79,99.722,4.09234667]
[1769987758705,4.12476199,99.809,99.721,10.02797805]
[1769987758706,15.30409082,99.8,99.75,15.30409082]
[1769987758909,15.30409082,99.79,99.74,15.30409082]
[1769987759436,15.30409082,99.76,99.691,5.36086188]
[1769987759729,5.36086188,99.857,99.7,10.03004317]
[1769987759730,15.30409082,99.74,99.7,10.03004317]
[1769987760106,15.30409082,99.75,99.7,29.42648066]
[1769987760307,10.01833355,99.817,99.741,4.09234667]
[1769987760509,10.01833355,99.817,99.702,4.27527085]
[1769987760510,15.30409082,99.81,99.76,15.30409082]
[1769987760710,10.01833355,99.817,99.78,15.30409082]
[1769987760941,10.01512283,99.849,99.8,15.30409082]
[1769987761120,15.30409082,99.86,99.81,15.30409082]
[1769987761318,10.01111233,99.889,99.84,15.30409082]
[1769987761531,10.01111233,99.889,99.78,27.84]
[1769987761532,15.30409082,99.85,99.784,5.64518502]
[1769987761732,15.30409082,99.85,99.78,27.84]
[1769987761733,15.30409082,99.83,99.79,4.09234667]
[1769987761915,4.27527085,99.858,99.79,4.09234667]
[1769987762240,15.30409082,99.89,99.84,15.30409082]
[1769987762526,19.07365122,99.916,99.88,15.30409082]
[1769987762730,19.07365122,99.916,99.861,4.09234667]
[1769987762908,5.22975723,99.966,99.91,15.30409082]
[1769987763104,4.12476199,99.953,99.883,4.09234667]
[1769987763315,4.12476199,99.953,99.79,16.30619523]
[1769987763316,35.00805184,99.977,99.911,4.09234667]
[1769987763506,15.30409082,99.96,99.9,15.30409082]
[1769987763723,15.30409082,99.92,99.864,4.09234667]